[Event "Paul Keres Memorial-Youth 2020"]
[Site "Parnu"]
[Date "2020.07.30"]
[Round "5.9"]
[White "Kokk, Karl Mattias"]
[Black "Kull, Tormi"]
[Result "0-1"]
[ECO "C06"]
[WhiteElo "1492"]
[BlackElo "1559"]
[Annotator "NA"]
[PlyCount "67"]
[EventDate "2020.07.27"]
[EventType "swiss"]
[EventCountry "EST"]
[SourceTitle "playchess.com"]
[Source "ChessBase"]
[SourceQuality "1"]
[TimeControl "40/5400+30:900+30"]

1. e4 {[%emt 0:29:46]} e6 {[%emt 0:29:36]} 2. d4 {[%emt 0:01:07]} d5 {[%emt 0:00:07]} 3. Nd2 {[%emt 0:01:00]} Nf6 {[%emt 0:00:08]} 4. e5 {[%emt 0:00:34]} Nfd7 {[%emt 0:00:06]} 5. Bd3 {[%emt 0:00:58]} b6 {[%emt 0:00:07]} 6. Ne2 {[%emt 0:03:09]} Ba6 {[%emt 0:00:16]} 7. Bxa6 {[%emt 0:01:57]} Nxa6 {[%emt 0:00:08]} 8. O-O {[%emt 0:01:11]} c5 {[%emt 0:00:07]} 9. c3 {[%emt 0:01:01]} Be7 {[%emt 0:00:09]} 10. f4 {[%emt 0:01:57]} Nc7 {[%emt 0:00:17]} 11. Nf3 {[%emt 0:05:22]} b5 {[%emt 0:01:50]} 12. g4 {[%emt 0:04:59]} a5 {[%emt 0:01:23]} 13. Ng3 {[%emt 0:02:41]} b4 {[%emt 0:02:48]} 14. f5 {[%emt 0:05:06]} cxd4 {[%emt 0:11:12]} 15. cxd4 {[%emt 0:00:48]} exf5 {[%emt 0:02:43]} 16. gxf5 {[%emt 0:01:00]} g6 {[%emt 0:00:48]} 17. e6 {[%emt 0:15:25]} fxe6 {[%emt 0:05:29]} 18. fxe6 {[%emt 0:00:47]} Nf6 {[%emt 0:01:22]} 19. Ng5 {[%emt 0:06:54]} O-O {[%emt 0:00:14]} 20. Nf7 {[%emt 0:03:22]} Qc8 {[%emt 0:00:24]} 21. Bh6 {[%emt 0:03:33]} Re8 {[%emt 0:00:31]} 22. Bg5 {[%emt 0:07:19]} Qxe6 {[%emt 0:00:52]} 23. Nh6+ {[%emt 0:00:20]} Kg7 {[%emt 0:00:25]} 24. Re1 {[%emt 0:00:21]} Qd7 {[%emt 0:01:52]} 25. Qf3 {[%emt 0:01:09]} Ne6 {[%emt 0:01:07]} 26. Bh4 {[%emt 0:00:43]} Nxd4 {[%emt 0:03:05]} 27. Qf4 {[%emt 0:00:30]} Ne6 {[%emt 0:01:24]} 28. Ngf5+ {[%emt 0:00:22]} gxf5 {[%emt 0:09:13]} 29. Rxe6 {[%emt 0:00:30]} Bc5+ {[%emt 0:00:32]} 30. Kh1 {[%emt 0:00:34]} Qxe6 {[%emt 0:03:24]} 31. Nxf5+ {[%emt 0:00:34]} Kh8 {[%emt 0:02:31]} 32. Rf1 {[%emt 0:00:30]} Qe4+ {[%emt 0:00:31]} 33. Rf3 {[%emt 0:00:30]} Ra6 {[%emt 0:01:59]} 34. Qg3 {[%emt 0:00:27]} 0-1

[Event "Paul Keres Memorial-Youth 2020"]
[Site "Parnu"]
[Date "2020.07.30"]
[Round "6.6"]
[White "Raag, Ardi"]
[Black "Pedoson, Georg Aleksander"]
[Result "1/2-1/2"]
[ECO "C67"]
[WhiteElo "1729"]
[BlackElo "2189"]
[Annotator "ChessBase"]
[PlyCount "22"]
[EventDate "2020.07.27"]
[EventType "swiss"]
[EventCountry "EST"]
[SourceTitle "playchess.com"]
[Source "ChessBase"]
[SourceQuality "1"]
[TimeControl "40/5400+30:900+30"]

1. e4 {[%emt 0:29:33]} e5 {[%emt 0:33:44]} 2. Nf3 {[%emt 0:00:06]} Nc6 {[%emt 0:00:04]} 3. Bb5 {[%emt 0:00:04]} Nf6 {[%emt 0:00:05]} 4. O-O {[%emt 0:00:05]} Nxe4 {[%emt 0:00:08]} 5. d4 {[%emt 0:00:11]} Nd6 {[%emt 0:00:13]} 6. Bxc6 {[%emt 0:00:06]} dxc6 {[%emt 0:00:04]} 7. dxe5 {[%emt 0:00:08]} Nf5 {[%emt 0:00:02]} 8. Qxd8+ {[%emt 0:00:09]} Kxd8 {[%emt 0:00:04]} 9. Rd1+ {[%emt 0:01:09]} Ke8 {[%emt 0:00:05]} 10. Nc3 {[%emt 0:01:22]} Be7 {[%emt 0:08:40]} 11. Bg5 {[%emt 0:02:33]} Be6 {[%emt 0:00:19]} 1/2-1/2

[Event "Paul Keres Memorial-Youth 2020"]
[Site "Parnu"]
[Date "2020.07.30"]
[Round "6.7"]
[White "Golsta, Madara"]
[Black "Andrijashkin, Deniss"]
[Result "1/2-1/2"]
[ECO "B07"]
[WhiteElo "1903"]
[BlackElo "1850"]
[Annotator "ChessBase"]
[PlyCount "21"]
[EventDate "2020.07.27"]
[EventType "swiss"]
[EventCountry "EST"]
[SourceTitle "playchess.com"]
[Source "ChessBase"]
[SourceQuality "1"]
[TimeControl "40/5400+30:900+30"]

1. e4 {[%emt 0:29:32]} g6 {[%emt 0:31:49]} 2. d4 {[%emt 0:00:27]} Bg7 {[%emt 0:00:15]} 3. Nc3 {[%emt 0:00:24]} d6 {[%emt 0:00:07]} 4. Be3 {[%emt 0:01:58]} Nf6 {[%emt 0:01:29]} 5. f3 {[%emt 0:00:24]} c6 {[%emt 0:02:07]} 6. Qd2 {[%emt 0:00:32]} O-O {[%emt 0:10:44]} 7. O-O-O {[%emt 0:00:59]} b5 {[%emt 0:00:17]} 8. g4 {[%emt 0:01:11]} Qa5 {[%emt 0:00:13]} 9. Kb1 {[%emt 0:00:25]} Nbd7 {[%emt 0:15:45]} 10. h4 {[%emt 0:07:02]} Nb6 {[%emt 0:05:53]} 11. h5 {[%emt 0:06:35]} 1/2-1/2

[Event "Paul Keres Memorial-Youth 2020"]
[Site "Parnu"]
[Date "2020.07.30"]
[Round "6.8"]
[White "Kull, Tormi"]
[Black "Blokhin, Sofia"]
[Result "1/2-1/2"]
[ECO "B40"]
[WhiteElo "1559"]
[BlackElo "1786"]
[Annotator "NA RC"]
[PlyCount "58"]
[EventDate "2020.07.27"]
[EventType "swiss"]
[EventCountry "EST"]
[SourceTitle "playchess.com"]
[Source "ChessBase"]
[SourceQuality "1"]
[TimeControl "40/5400+30:900+30"]

1. e4 {[%emt 0:29:32]} c5 {[%emt 0:29:37]} 2. Nf3 {[%emt 0:00:05]} e6 {[%emt 0:00:06]} 3. d4 {[%emt 0:00:04]} cxd4 {[%emt 0:00:06]} 4. Nxd4 {[%emt 0:00:06]} Nf6 {[%emt 0:00:07]} 5. Bd3 {[%emt 0:00:14]} Nc6 {[%emt 0:00:07]} 6. Nf3 {[%emt 0:02:24]} d6 {[%emt 0:00:27]} 7. O-O {[%emt 0:01:00]} Be7 {[%emt 0:00:27]} 8. c4 {[%emt 0:00:12]} O-O {[%emt 0:00:25]} 9. Nc3 {[%emt 0:00:29]} b6 {[%emt 0:01:22]} 10. Qe2 {[%emt 0:00:52]} a6 {[%emt 0:04:54]} 11. Bd2 {[%emt 0:00:28]} Bb7 {[%emt 0:01:42]} 12. Rac1 {[%emt 0:00:16]} Rc8 {[%emt 0:02:31]} 13. b3 {[%emt 0:01:12]} Nd7 {[%emt 0:03:21]} 14. Bb1 {[%emt 0:03:51]} Nde5 {[%emt 0:03:34]} 15. Rfd1 {[%emt 0:01:35]} Nxf3+ {[%emt 0:04:13]} 16. Qxf3 {[%emt 0:00:24]} Ne5 {[%emt 0:00:49]} 17. Qe2 {[%emt 0:00:42]} Qc7 {[%emt 0:03:30]} 18. f4 {[%emt 0:00:54]} Ng6 {[%emt 0:02:02]} 19. Be3 {[%emt 0:01:19]} Bc6 {[%emt 0:09:20]} 20. a4 {[%emt 0:00:43]} Qb7 {[%emt 0:01:08]} 21. Bd3 {[%emt 0:03:31]} Ra8 {[%emt 0:07:13]} 22. g3 {[%emt 0:01:11]} Bf6 {[%emt 0:01:45]} 23. Bf2 {[%emt 0:01:42]} Bxc3 {[%emt 0:01:15]} 24. Rxc3 {[%emt 0:00:11]} Rfe8 {[%emt 0:07:52]} 25. Qc2 {[%emt 0:04:21]} Rac8 {[%emt 0:02:24]} 26. Rc1 {[%emt 0:00:34]} Ne7 {[%emt 0:02:51]} 27. Qe2 {[%emt 0:05:12]} Ra8 {[%emt 0:01:03]} 28. Qc2 {[%emt 0:04:49]} Rac8 {[%emt 0:01:17]} 29. Qe2 {[%emt 0:00:42]} Ra8 {[%emt 0:00:18]} 1/2-1/2

[Event "Paul Keres Memorial-Youth 2020"]
[Site "Parnu"]
[Date "2020.07.30"]
[Round "6.9"]
[White "Shadrina, Eva"]
[Black "Nikitin, Arseni EST"]
[Result "0-1"]
[ECO "B20"]
[WhiteElo "1234"]
[BlackElo "1688"]
[Annotator "NA RC"]
[PlyCount "72"]
[EventDate "2020.07.27"]
[EventType "swiss"]
[EventCountry "EST"]
[SourceTitle "playchess.com"]
[Source "ChessBase"]
[SourceQuality "1"]
[TimeControl "40/5400+30:900+30"]

1. e4 {[%emt 0:29:34]} c5 {[%emt 0:29:38]} 2. a3 {[%emt 0:00:06]} Nc6 {[%emt 0:01:02]} 3. b4 {[%emt 0:00:14]} e5 {[%emt 0:04:01]} 4. b5 {[%emt 0:03:34]} Nd4 {[%emt 0:00:07]} 5. c3 {[%emt 0:03:01]} Ne6 {[%emt 0:00:34]} 6. g3 {[%emt 0:01:15]} d5 {[%emt 0:02:36]} 7. f3 {[%emt 0:07:53]} b6 {[%emt 0:01:24]} 8. d3 {[%emt 0:01:37]} Bb7 {[%emt 0:00:53]} 9. Bg2 {[%emt 0:01:34]} dxe4 {[%emt 0:02:13]} 10. fxe4 {[%emt 0:01:26]} Qd6 {[%emt 0:00:55]} 11. Nh3 {[%emt 0:02:40]} O-O-O {[%emt 0:01:51]} 12. Nf2 {[%emt 0:00:21]} h5 {[%emt 0:00:27]} 13. h4 {[%emt 0:01:49]} Be7 {[%emt 0:00:27]} 14. a4 {[%emt 0:01:09]} Nf6 {[%emt 0:01:13]} 15. Bf3 {[%emt 0:02:30]} c4 {[%emt 0:00:49]} 16. dxc4 {[%emt 0:03:54]} Qxd1+ {[%emt 0:00:06]} 17. Bxd1 {[%emt 0:01:21]} Nxe4 {[%emt 0:01:29]} 18. Nxe4 {[%emt 0:01:57]} Bxe4 {[%emt 0:00:12]} 19. Rf1 {[%emt 0:06:17]} f5 {[%emt 0:01:04]} 20. Nd2 {[%emt 0:12:02]} Bd3 {[%emt 0:00:44]} 21. Rh1 {[%emt 0:00:59]} g6 {[%emt 0:00:31]} 22. a5 {[%emt 0:02:05]} Bc5 {[%emt 0:00:44]} 23. axb6 {[%emt 0:00:36]} Bxb6 {[%emt 0:00:07]} 24. Be2 {[%emt 0:02:26]} Nc5 {[%emt 0:02:07]} 25. Ba3 {[%emt 0:04:23]} Be4 {[%emt 0:03:09]} 26. Nxe4 {[%emt 0:03:03]} Nxe4 {[%emt 0:00:18]} 27. Rh3 {[%emt 0:00:38]} Be3 {[%emt 0:01:10]} 28. Bb4 {[%emt 0:00:41]} Kb8 {[%emt 0:00:27]} 29. Bf3 {[%emt 0:02:28]} Bd2+ {[%emt 0:01:07]} 30. Ke2 {[%emt 0:00:19]} Nxc3+ {[%emt 0:00:17]} 31. Bxc3 {[%emt 0:00:36]} Bxc3 {[%emt 0:00:09]} 32. Rc1 {[%emt 0:00:29]} Rd2+ {[%emt 0:00:40]} 33. Kf1 {[%emt 0:00:14]} Bd4 {[%emt 0:00:07]} 34. Bd5 {[%emt 0:00:27]} Bc5 {[%emt 0:00:37]} 35. Ra1 {[%emt 0:00:41]} Rf8 {[%emt 0:00:10]} 36. Ra6 {[%emt 0:01:00]} f4 {[%emt 0:00:23]} 0-1

[Event "Paul Keres Memorial-Youth 2020"]
[Site "Parnu"]
[Date "2020.08.01"]
[Round "7.7"]
[White "Raag, Ardi"]
[Black "Kull, Tormi"]
[Result "1-0"]
[ECO "D42"]
[WhiteElo "1729"]
[BlackElo "1559"]
[Annotator "NA"]
[PlyCount "67"]
[EventDate "2020.07.27"]
[EventType "swiss"]
[EventCountry "EST"]
[TimeControl "40/5400+30:900+30"]

1. e4 {[%emt 0:29:32]} c6 {[%emt 0:29:31]} 2. d4 {[%emt 0:00:08]} d5 {[%emt 0:00:04]} 3. exd5 {[%emt 0:00:07]} cxd5 {[%emt 0:00:04]} 4. c4 {[%emt 0:00:08]} Nf6 {[%emt 0:00:05]} 5. Nc3 {[%emt 0:00:27]} e6 {[%emt 0:00:06]} 6. Nf3 {[%emt 0:01:34]} Be7 {[%emt 0:00:24]} 7. cxd5 {[%emt 0:01:55]} Nxd5 {[%emt 0:00:08]} 8. Bd3 {[%emt 0:01:00]} Nc6 {[%emt 0:01:21]} 9. O-O {[%emt 0:01:02]} O-O {[%emt 0:00:07]} 10. Be3 {[%emt 0:02:59]} Bf6 {[%emt 0:01:11]} 11. a3 {[%emt 0:02:35]} b6 {[%emt 0:02:35]} 12. Nxd5 {[%emt 0:04:15]} exd5 {[%emt 0:03:38]} 13. Qc2 {[%emt 0:01:20]} Bb7 {[%emt 0:03:37]} 14. Bxh7+ {[%emt 0:00:22]} Kh8 {[%emt 0:00:04]} 15. Bd3 {[%emt 0:00:37]} Rc8 {[%emt 0:00:41]} 16. Qd1 {[%emt 0:06:57]} g6 {[%emt 0:03:12]} 17. b4 {[%emt 0:05:54]} a6 {[%emt 0:02:12]} 18. Qe2 {[%emt 0:03:03]} b5 {[%emt 0:00:23]} 19. Qd2 {[%emt 0:00:25]} Qb6 {[%emt 0:02:02]} 20. Bc2 {[%emt 0:02:47]} a5 {[%emt 0:04:09]} 21. Rac1 {[%emt 0:03:04]} Be7 {[%emt 0:01:00]} 22. Bh6 {[%emt 0:01:33]} Rfe8 {[%emt 0:02:44]} 23. Qf4 {[%emt 0:03:02]} Nd8 {[%emt 0:00:58]} 24. Rfe1 {[%emt 0:03:51]} Kg8 {[%emt 0:02:01]} 25. Ng5 {[%emt 0:07:46]} axb4 {[%emt 0:04:48]} 26. axb4 {[%emt 0:00:58]} Rc6 {[%emt 0:01:02]} 27. Qh4 {[%emt 0:03:08]} f6 {[%emt 0:02:46]} 28. Nf3 {[%emt 0:01:34]} Rxc2 {[%emt 0:01:55]} 29. Rxc2 {[%emt 0:00:21]} Kf7 {[%emt 0:00:16]} 30. Bd2 {[%emt 0:01:30]} Ne6 {[%emt 0:01:26]} 31. Qh7+ {[%emt 0:01:49]} Ng7 {[%emt 0:00:05]} 32. Bh6 {[%emt 0:00:24]} Rg8 {[%emt 0:00:05]} 33. Bxg7 {[%emt 0:00:14]} Rxg7 {[%emt 0:00:08]} 34. Rxe7+ {[%emt 0:00:05]} 1-0

[Event "Paul Keres Memorial-Youth 2020"]
[Site "Parnu"]
[Date "2020.08.01"]
[Round "7.8"]
[White "Nikitin, Arseni EST"]
[Black "Golsta, Madara"]
[Result "1/2-1/2"]
[ECO "B21"]
[WhiteElo "1688"]
[BlackElo "1903"]
[Annotator "ChessBase"]
[PlyCount "87"]
[EventDate "2020.07.27"]
[EventType "swiss"]
[EventCountry "EST"]
[TimeControl "40/5400+30:900+30"]

1. e4 {[%emt 0:29:32]} c5 {[%emt 0:29:37]} 2. Be2 {[%emt 0:00:06]} Nc6 {[%emt 0:02:13]} 3. f4 {[%emt 0:00:07]} g6 {[%emt 0:00:06]} 4. Nf3 {[%emt 0:00:04]} Bg7 {[%emt 0:00:08]} 5. d3 {[%emt 0:00:09]} e6 {[%emt 0:01:45]} 6. c3 {[%emt 0:01:38]} Nge7 {[%emt 0:01:06]} 7. Be3 {[%emt 0:02:27]} d6 {[%emt 0:06:32]} 8. O-O {[%emt 0:01:16]} O-O {[%emt 0:01:11]} 9. Na3 {[%emt 0:01:04]} a6 {[%emt 0:01:28]} 10. Nc2 {[%emt 0:00:11]} b5 {[%emt 0:03:30]} 11. a3 {[%emt 0:00:35]} Bb7 {[%emt 0:00:42]} 12. d4 {[%emt 0:03:58]} cxd4 {[%emt 0:00:32]} 13. cxd4 {[%emt 0:01:26]} f5 {[%emt 0:03:40]} 14. e5 {[%emt 0:05:52]} dxe5 {[%emt 0:00:25]} 15. dxe5 {[%emt 0:00:06]} Nd5 {[%emt 0:00:41]} 16. Qd2 {[%emt 0:02:36]} Nxe3 {[%emt 0:03:13]} 17. Qxe3 {[%emt 0:00:17]} Ne7 {[%emt 0:00:22]} 18. Rfd1 {[%emt 0:01:01]} Nd5 {[%emt 0:00:39]} 19. Qd2 {[%emt 0:00:32]} Qb6+ {[%emt 0:01:20]} 20. Ncd4 {[%emt 0:01:07]} Rfd8 {[%emt 0:00:43]} 21. g3 {[%emt 0:02:05]} Rd7 {[%emt 0:03:38]} 22. Kf1 {[%emt 0:07:51]} Rad8 {[%emt 0:00:52]} 23. Nc2 {[%emt 0:00:19]} Rc8 {[%emt 0:04:38]} 24. Nfd4 {[%emt 0:00:51]} Rdc7 {[%emt 0:03:52]} 25. Rac1 {[%emt 0:00:13]} Bf8 {[%emt 0:00:36]} 26. b4 {[%emt 0:07:44]} Nc3 {[%emt 0:01:58]} 27. Re1 {[%emt 0:00:28]} Ne4 {[%emt 0:00:55]} 28. Qe3 {[%emt 0:00:08]} Rc3 {[%emt 0:02:03]} 29. Bd3 {[%emt 0:00:02]} Rxd3 {[%emt 0:04:35]} 30. Qxd3 {[%emt 0:00:30]} Rc3 {[%emt 0:00:07]} 31. Qd1 {[%emt 0:00:23]} Bd5 {[%emt 0:01:07]} 32. Re3 {[%emt 0:01:13]} Bc4+ {[%emt 0:02:11]} 33. Ke1 {[%emt 0:00:36]} Qb7 {[%emt 0:06:13]} 34. Rxc3 {[%emt 0:00:34]} Nxc3 {[%emt 0:01:56]} 35. Qf3 {[%emt 0:00:10]} Ne4 {[%emt 0:01:29]} 36. Ne3 {[%emt 0:05:13]} Qb6 {[%emt 0:02:30]} 37. Nxc4 {[%emt 0:00:51]} Qxd4 {[%emt 0:02:21]} 38. Qe3 {[%emt 0:00:03]} Qd5 {[%emt 0:00:36]} 39. Nd2 {[%emt 0:02:24]} Nxd2 {[%emt 0:00:41]} 40. Qxd2 {[%emt 0:00:00]} Qh1+ {[%emt 0:00:00]} 41. Ke2 {[%emt 0:00:37]} Qxh2+ {[%emt 0:00:56]} 42. Kd3 {[%emt 0:00:37]} Qxg3+ {[%emt 0:00:47]} 43. Qe3 {[%emt 0:00:10]} Qg2 {[%emt 0:00:39]} 44. Rc8 {[%emt 0:03:40]} 1/2-1/2

[Event "Paul Keres Memorial-Youth 2020"]
[Site "Parnu"]
[Date "2020.08.01"]
[Round "7.9"]
[White "Blokhin, Sofia"]
[Black "Aga, Rihard"]
[Result "0-1"]
[ECO "B15"]
[WhiteElo "1786"]
[BlackElo "2022"]
[Annotator "ChessBase"]
[PlyCount "96"]
[EventDate "2020.07.27"]
[EventType "swiss"]
[EventCountry "EST"]
[TimeControl "40/5400+30:900+30"]

1. e4 {[%emt 0:29:31]} c6 {[%emt 0:29:34]} 2. Nf3 {[%emt 0:00:06]} d5 {[%emt 0:00:07]} 3. Nc3 {[%emt 0:00:05]} dxe4 {[%emt 0:00:05]} 4. Nxe4 {[%emt 0:00:06]} Nf6 {[%emt 0:00:04]} 5. Nxf6+ {[%emt 0:00:36]} exf6 {[%emt 0:00:05]} 6. d4 {[%emt 0:01:02]} Bd6 {[%emt 0:00:08]} 7. Be3 {[%emt 0:00:51]} O-O {[%emt 0:00:33]} 8. Qd2 {[%emt 0:02:37]} Re8 {[%emt 0:02:38]} 9. O-O-O {[%emt 0:02:05]} Be6 {[%emt 0:02:35]} 10. Kb1 {[%emt 0:03:12]} a5 {[%emt 0:02:11]} 11. Bd3 {[%emt 0:01:57]} b5 {[%emt 0:01:43]} 12. Nh4 {[%emt 0:03:31]} b4 {[%emt 0:01:54]} 13. g4 {[%emt 0:10:36]} a4 {[%emt 0:12:35]} 14. Rhg1 {[%emt 0:09:05]} Qd7 {[%emt 0:09:54]} 15. Nf5 {[%emt 0:04:58]} Bf8 {[%emt 0:00:43]} 16. h3 {[%emt 0:06:48]} Qd5 {[%emt 0:00:46]} 17. b3 {[%emt 0:01:23]} axb3 {[%emt 0:00:13]} 18. cxb3 {[%emt 0:00:53]} Nd7 {[%emt 0:04:52]} 19. Qc2 {[%emt 0:01:05]} Ra5 {[%emt 0:07:35]} 20. Kb2 {[%emt 0:02:28]} Nb6 {[%emt 0:05:38]} 21. Ng3 {[%emt 0:02:52]} Rea8 {[%emt 0:03:57]} 22. Ra1 {[%emt 0:00:46]} Na4+ {[%emt 0:00:58]} 23. Kc1 {[%emt 0:09:19]} Nc3 {[%emt 0:00:19]} 24. Bc4 {[%emt 0:02:23]} Qd7 {[%emt 0:01:01]} 25. Bxe6 {[%emt 0:00:29]} Qxe6 {[%emt 0:00:57]} 26. a4 {[%emt 0:00:13]} c5 {[%emt 0:00:33]} 27. Kb2 {[%emt 0:01:16]} c4 {[%emt 0:00:33]} 28. Rgb1 {[%emt 0:01:52]} cxb3 {[%emt 0:01:42]} 29. Qxb3 {[%emt 0:00:08]} Qxb3+ {[%emt 0:00:18]} 30. Kxb3 {[%emt 0:00:11]} Nxb1 {[%emt 0:00:04]} 31. Rxb1 {[%emt 0:00:19]} Rxa4 {[%emt 0:00:04]} 32. Ne4 {[%emt 0:00:44]} Ra3+ {[%emt 0:00:33]} 33. Kc4 {[%emt 0:00:33]} Ra1 {[%emt 0:02:21]} 34. Rb2 {[%emt 0:01:20]} Rh1 {[%emt 0:02:54]} 35. Nc5 {[%emt 0:00:14]} Rxh3 {[%emt 0:00:18]} 36. Rxb4 {[%emt 0:00:24]} Rh4 {[%emt 0:00:13]} 37. Rb7 {[%emt 0:01:01]} Rc8 {[%emt 0:00:34]} 38. Kb5 {[%emt 0:00:47]} Rxg4 {[%emt 0:00:31]} 39. Kb6 {[%emt 0:00:44]} h5 {[%emt 0:01:05]} 40. Ra7 {[%emt 0:00:00]} h4 {[%emt 0:00:00]} 41. Ra1 {[%emt 0:00:35]} h3 {[%emt 0:03:00]} 42. Rh1 {[%emt 0:00:43]} Rh4 {[%emt 0:00:36]} 43. f4 {[%emt 0:00:49]} Bd6 {[%emt 0:00:36]} 44. Nd3 {[%emt 0:01:28]} h2 {[%emt 0:00:25]} 45. Ne1 {[%emt 0:00:35]} Rh3 {[%emt 0:00:47]} 46. Bd2 {[%emt 0:02:18]} Rb3+ {[%emt 0:00:12]} 47. Ka7 {[%emt 0:00:18]} Bb8+ {[%emt 0:00:33]} 48. Ka6 {[%emt 0:00:09]} Rc7 {[%emt 0:00:13]} 0-1